fUST/lending_fUST_20240927
["ID","MTS","AMOUNT","RATE_DAILY","PERIOD"]
[339300555,1727442639876,-510.55708519,0.00019178,2]
[339300556,1727442639887,-1101.06,0.00019178,2]
[339300557,1727442639896,-500.0,0.00019178,2]
[339300558,1727442639907,-500.0,0.00019178,2]
[339300559,1727442639917,-500.0,0.00019178,2]
[339300560,1727442639927,-957.37,0.00019178,2]
[339300561,1727442639938,-13150.91,0.00019178,2]
[339300562,1727442639948,-500.0,0.00019178,2]
[339300563,1727442639958,-359.65120005,0.00019178,2]
[339300564,1727442639967,-2463.96,0.00019178,2]
[339300565,1727442639977,-500.0,0.00019178,2]
[339300566,1727442639987,-487.52746367,0.00019178,2]
[339300567,1727442639997,-500.0,0.00019178,2]
[339300568,1727442640006,-500.0,0.00019178,2]
[339300569,1727442640015,-500.0,0.00019178,2]
[339300570,1727442640027,-500.0,0.00019178,2]
[339300571,1727442640037,-500.0,0.00019178,2]
[339300572,1727442640047,-504.24180738,0.00019178,2]
[339300573,1727442640059,-500.0,0.00019178,2]
[339300574,1727442640068,-500.0,0.00019178,2]
[339300575,1727442640078,-500.0,0.00019178,2]
[339300576,1727442640087,-1534.8,0.00019178,2]
[339300577,1727442640097,-383.07136475,0.00019178,2]
[339300578,1727442640107,-500.0,0.00019178,2]
[339300579,1727442640116,-161.967575,0.00019178,2]
[339300581,1727442640246,-162.713032,0.00019178,2]
[339300582,1727442640257,-3264.54351685,0.00019257,2]
[339300583,1727442640266,-153.0,0.00019273,2]
[339300584,1727442640276,-153.0,0.00019273,2]
[339300585,1727442640285,-153.0,0.00019273,2]
[339300586,1727442640299,-153.0,0.00019273,2]
[339300587,1727442640309,-153.0,0.00019273,2]
[339300588,1727442640318,-153.0,0.00019273,2]
[339300589,1727442640329,-153.0,0.00019273,2]
[339300590,1727442640340,-153.0,0.00019273,2]
[339300591,1727442640349,-153.0,0.00019273,2]
[339300592,1727442640359,-153.0,0.00019273,2]
[339300593,1727442640371,-153.0,0.00019273,2]
[339300594,1727442640382,-153.0,0.00019273,2]
[339300595,1727442640391,-153.0,0.00019273,2]
[339300596,1727442640401,-153.0,0.00019273,2]
[339300597,1727442640411,-153.0,0.00019273,2]
[339300598,1727442640421,-153.0,0.00019273,2]
[339300599,1727442640430,-153.0,0.00019273,2]
[339300600,1727442640440,-153.0,0.00019273,2]
[339300601,1727442640451,-153.0,0.00019273,2]
[339300602,1727442640462,-153.0,0.00019273,2]
[339300603,1727442640472,-153.0,0.00019273,2]
[339300604,1727442640481,-153.0,0.00019273,2]
[339300605,1727442640491,-153.0,0.00019273,2]
[339300606,1727442640499,-153.0,0.00019273,2]
[339300607,1727442640509,-153.0,0.00019273,2]
[339300608,1727442640519,-153.0,0.00019273,2]
[339300609,1727442640529,-153.0,0.00019273,2]
[339300610,1727442640538,-153.0,0.00019273,2]
[339300611,1727442640549,-153.0,0.00019273,2]
[339300612,1727442640558,-150.112235,0.000194,2]
[339300613,1727442640567,-394.05115859,0.00019432,3]
[339300614,1727442640692,-10132.70188421,0.00019432,3]
[339300615,1727442640703,-3508.91768095,0.00019442,3]
[339300616,1727442640713,-151.0,0.00019452,2]
[339300617,1727442640724,-268.090704,0.00019452,2]
[339300618,1727442640734,-268.090704,0.00019452,2]
[339300619,1727442640743,-200.069123,0.00019452,2]
[339300620,1727442640754,-200.069123,0.00019452,2]
[339300621,1727442640763,-151.0,0.00019452,2]
[339300623,1727442640772,-591.76,0.00019452,2]
[339300625,1727442640782,-939.76,0.00019452,2]
[339300627,1727442640792,-764.03,0.00019452,2]
[339300629,1727442640801,-942.5,0.00019452,2]
[339300631,1727442640811,-500.0,0.00019452,2]
[339300632,1727442640821,-500.0,0.00019452,2]
[339300634,1727442640831,-500.0,0.00019452,2]
[339300636,1727442640842,-500.0,0.00019452,2]
[339300638,1727442640851,-500.0,0.00019452,2]
[339300640,1727442640860,-500.0,0.00019452,2]
[339300642,1727442640870,-500.0,0.00019452,2]
[339300644,1727442640879,-886.6,0.00019452,2]
[339300646,1727442640888,-500.0,0.00019452,2]
[339300648,1727442640898,-500.0,0.00019452,2]
[339300650,1727442640908,-482.37469278,0.00019452,2]
[339300652,1727442640917,-500.0,0.00019452,2]
[339300654,1727442640927,-1211.69,0.00019452,2]
[339300656,1727442640937,-1624.79,0.00019452,2]
[339300658,1727442640946,-200.0,0.00019452,2]
[339300659,1727442640955,-640.51989,0.00019452,2]
[339300662,1727442640964,-500.0,0.00019452,2]
[339300663,1727442640973,-500.0,0.00019452,2]
[339300665,1727442640982,-500.0,0.00019452,2]
[339300667,1727442640992,-1101.06,0.00019452,2]
[339300669,1727442641001,-500.0,0.00019452,2]
[339300671,1727442641011,-500.0,0.00019452,2]
[339300673,1727442641022,-957.37,0.00019452,2]
[339300675,1727442641033,-13150.91,0.00019452,2]
[339300678,1727442641042,-2463.96,0.00019452,2]
[339300680,1727442641054,-500.0,0.00019452,2]
[339300682,1727442641065,-500.0,0.00019452,2]
[339300684,1727442641073,-500.0,0.00019452,2]
[339300686,1727442641083,-589.71,0.00019452,2]
[339300688,1727442641094,-500.0,0.00019452,2]
[339300690,1727442641103,-287.18062271,0.00019452,2]
[339300692,1727442641114,-1534.8,0.00019452,2]
[339300694,1727442641125,-500.0,0.00019452,2]
[339300696,1727442641134,-500.0,0.0001956,2]
[339300698,1727442641143,-160.612765,0.000197,2]
[339300700,1727442641152,-591.76,0.00019726,2]
[339300702,1727442641161,-939.76,0.00019726,2]
[339300704,1727442641170,-764.03,0.00019726,2]
[339300706,1727442641179,-942.5,0.00019726,2]
[339300708,1727442641188,-500.0,0.00019726,2]
[339300710,1727442641198,-500.0,0.00019726,2]
[339300712,1727442641207,-500.0,0.00019726,2]
[339300714,1727442641216,-500.0,0.00019726,2]
[339300716,1727442641225,-500.0,0.00019726,2]
[339300718,1727442641234,-886.6,0.00019726,2]
[339300720,1727442641243,-507.01293949,0.00019726,2]
[339300722,1727442641252,-500.0,0.00019726,2]
[339300724,1727442641262,-500.0,0.00019726,2]
[339300726,1727442641271,-1211.69,0.00019726,2]
[339300728,1727442641280,-1624.79,0.00019726,2]
[339300730,1727442641290,-200.0,0.00019726,2]
[339300732,1727442641304,-319.21002844,0.00019726,2]
[339300735,1727442641315,-500.0,0.00019726,2]
[339300737,1727442641324,-500.0,0.00019726,2]
[339300738,1727442641335,-1101.06,0.00019726,2]
[339300740,1727442641344,-500.0,0.00019726,2]
[339300742,1727442641353,-500.0,0.00019726,2]
[339300744,1727442641363,-957.37,0.00019726,2]
[339300746,1727442641373,-13150.91,0.00019726,2]
[339300748,1727442641383,-2463.96,0.00019726,2]
[339300750,1727442641393,-500.0,0.00019726,2]
[339300752,1727442641402,-500.0,0.00019726,2]
[339300753,1727442641411,-500.0,0.00019726,2]
[339300754,1727442641420,-302.83364127,0.00019726,2]
[339300755,1727442641430,-1534.8,0.00019726,2]
[339300756,1727442641439,-500.0,0.00019726,2]
[339300757,1727442641448,-151.0,0.0002,2]
[339300758,1727442641459,-268.090704,0.0002,2]
[339300760,1727442641468,-268.090704,0.0002,2]
[339300761,1727442641477,-200.069123,0.0002,2]
[339300763,1727442641487,-200.069123,0.0002,2]
[339300765,1727442641496,-151.0,0.0002,2]
[339300768,1727442641506,-591.76,0.0002,2]
[339300770,1727442641515,-939.76,0.0002,2]
[339300772,1727442641524,-764.03,0.0002,2]
[339300774,1727442641533,-942.5,0.0002,2]
[339300776,1727442641543,-500.0,0.0002,2]
[339300778,1727442641552,-1674.27,0.0002,2]
[339300779,1727442641561,-500.0,0.0002,2]
[339300781,1727442641570,-500.0,0.0002,2]
[339300783,1727442641579,-500.0,0.0002,2]
[339300785,1727442641589,-500.0,0.0002,2]
[339300788,1727442641599,-886.6,0.0002,2]
[339300790,1727442641608,-500.0,0.0002,2]
[339300792,1727442641617,-500.0,0.0002,2]
[339300793,1727442641627,-1211.69,0.0002,2]
[339300795,1727442641636,-1624.79,0.0002,2]
[339300797,1727442641645,-200.0,0.0002,2]
[339300799,1727442641654,-500.0,0.0002,2]
[339300801,1727442641664,-500.0,0.0002,2]
[339300803,1727442641673,-1101.06,0.0002,2]
[339300805,1727442641683,-500.0,0.0002,2]
[339300807,1727442641692,-500.0,0.0002,2]
[339300809,1727442641701,-957.37,0.0002,2]
[339300811,1727442641710,-13150.91,0.0002,2]
[339300813,1727442641720,-2463.96,0.0002,2]
[339300815,1727442641730,-500.0,0.0002,2]
[339300817,1727442641740,-500.0,0.0002,2]
[339300819,1727442641749,-500.0,0.0002,2]
[339300821,1727442641759,-1534.8,0.0002,2]
[339300823,1727442641768,-500.0,0.0002,2]
[339300825,1727442641777,-823.0,0.00020026,2]
[339300828,1727442641787,-500.0,0.00020156,2]
[339300830,1727442641797,-500.0,0.00020156,2]
[339300832,1727442641806,-500.0,0.00020156,2]
[339300834,1727442641816,-150.112233,0.000202,2]
[339300836,1727442641825,-591.76,0.00020273,2]
[339300838,1727442641835,-939.76,0.00020273,2]
[339300840,1727442641845,-764.03,0.00020273,2]
[339300842,1727442641854,-942.5,0.00020273,2]
[339300844,1727442641864,-500.0,0.00020273,2]
[339300846,1727442641873,-482.4761541,0.00020273,2]
[339300848,1727442641882,-500.0,0.00020273,2]
[339300850,1727442641891,-491.14,0.00020273,2]
[339300852,1727442641901,-500.0,0.00020273,2]
[339300854,1727442641911,-886.6,0.00020273,2]
[339300856,1727442641920,-500.0,0.00020273,2]
[339300858,1727442641929,-500.0,0.00020273,2]
[339300860,1727442641938,-1211.69,0.00020273,2]
[339300862,1727442641947,-1624.79,0.00020273,2]
[339300864,1727442641957,-200.0,0.00020273,2]
[339300866,1727442641966,-187.06272016,0.00020273,2]
[339300868,1727442641976,-500.0,0.00020273,2]
[339300870,1727442641985,-1101.06,0.00020273,2]
[339300872,1727442641995,-500.0,0.00020273,2]
[339300874,1727442642004,-500.0,0.00020273,2]
[339300876,1727442642013,-957.37,0.00020273,2]
[339300878,1727442642022,-13150.91,0.00020273,2]
[339300880,1727442642031,-2463.96,0.00020273,2]
[339300882,1727442642040,-500.0,0.00020273,2]
[339300884,1727442642050,-500.0,0.00020273,2]
[339300886,1727442642059,-534.17375437,0.00020273,2]
[339300888,1727442642069,-1534.8,0.00020273,2]
[339300889,1727442642078,-640.47,0.00020273,2]
[339300892,1727442642090,-823.0,0.00020351,2]
[339300894,1727442642100,-151.0,0.00020377,2]
[339300896,1727442642109,-268.090704,0.00020377,2]
[339300897,1727442642118,-268.090704,0.00020377,2]
[339300899,1727442642127,-200.069123,0.00020377,2]
[339300901,1727442642136,-200.069123,0.00020377,2]
[339300903,1727442642146,-151.0,0.00020377,2]
[339300905,1727442642155,-591.76,0.00020547,2]
[339300907,1727442642164,-939.76,0.00020547,2]
[339300909,1727442642173,-764.03,0.00020547,2]
[339300911,1727442642182,-942.5,0.00020547,2]
[339300913,1727442642192,-500.0,0.00020547,2]
[339300915,1727442642201,-500.0,0.00020547,2]
[339300917,1727442642211,-500.0,0.00020547,2]
[339300919,1727442642221,-886.6,0.00020547,2]
[339300921,1727442642230,-500.0,0.00020547,2]
[339300923,1727442642239,-229.79980193,0.00020547,2]
[339300925,1727442642250,-1211.69,0.00020547,2]
[339300927,1727442642260,-1624.79,0.00020547,2]
[339300929,1727442642270,-200.0,0.00020547,2]
[339300931,1727442642279,-500.0,0.00020547,2]
[339300933,1727442642288,-1101.06,0.00020547,2]
[339300935,1727442642300,-500.0,0.00020547,2]
[339300937,1727442642310,-500.0,0.00020547,2]
[339300939,1727442642319,-957.37,0.00020547,2]
[339300941,1727442642329,-13150.91,0.00020547,2]
[339300943,1727442642341,-2463.96,0.00020547,2]
[339300945,1727442642351,-500.0,0.00020547,2]
[339300947,1727442642360,-1534.8,0.00020547,2]
[339300949,1727442642370,-1000.0,0.00020704,2]
[339300951,1727442642380,-1128.71719174,0.00020704,2]
[339300953,1727442642389,-1000.0,0.00020704,2]
[339300955,1727442642399,-150.112233,0.000208,4]
[339300957,1727442642410,-591.76,0.00020821,2]
[339300959,1727442642420,-939.76,0.00020821,2]
[339300961,1727442642429,-764.03,0.00020821,2]
[339300963,1727442642438,-942.5,0.00020821,2]
[339300965,1727442642447,-500.0,0.00020821,2]
[339300967,1727442642457,-500.0,0.00020821,2]
[339300969,1727442642468,-500.0,0.00020821,2]
[339300971,1727442642477,-886.6,0.00020821,2]
[339300973,1727442642487,-500.0,0.00020821,2]
[339300975,1727442642496,-1211.69,0.00020821,2]
[339300977,1727442642505,-1624.79,0.00020821,2]
[339300979,1727442642514,-200.0,0.00020821,2]
[339300981,1727442642523,-500.0,0.00020821,2]
[339300983,1727442642534,-1101.06,0.00020821,2]
[339300985,1727442642543,-295.737665,0.00020821,2]
[339300988,1727442642553,-295.737665,0.00020821,2]
[339300990,1727442642563,-151.0,0.00020821,2]
[339300992,1727442642572,-500.0,0.00020821,2]
[339300993,1727442642581,-500.0,0.00020821,2]
[339300996,1727442642595,-957.37,0.00020821,2]
[339300998,1727442642604,-151.0,0.00020821,2]
[339301000,1727442642614,-1091.980695,0.00020821,2]
[339301002,1727442642623,-1091.980695,0.00020821,2]
[339301003,1727442642632,-13150.91,0.00020821,2]
[339301005,1727442642642,-236.497999,0.00020821,2]
[339301007,1727442642651,-236.497999,0.00020821,2]
[339301021,1727442642767,-151.0,0.00020821,2]
[339301023,1727442642777,-2463.96,0.00020821,2]
[339301025,1727442642787,-500.0,0.00020821,2]
[339301027,1727442642797,-409.399505,0.00020821,2]
[339301029,1727442642806,-409.399505,0.00020821,2]
[339301031,1727442642816,-151.0,0.00020821,2]
[339301033,1727442642825,-151.0,0.00020821,2]
[339301035,1727442642834,-151.0,0.00020821,2]
[339301037,1727442642846,-151.0,0.00020821,2]
[339301039,1727442642856,-796.427013,0.00020821,2]
[339301041,1727442642865,-796.427013,0.00020821,2]
[339301043,1727442642875,-151.0,0.00020821,2]
[339301045,1727442642884,-424.014165,0.00020821,2]
[339301047,1727442642893,-151.0,0.00020821,2]
[339301049,1727442642903,-338.144571,0.00020821,2]
[339301051,1727442642912,-424.014165,0.00020821,2]
[339301053,1727442642922,-338.144571,0.00020821,2]
[339301055,1727442642931,-1534.8,0.00020821,2]
[339301056,1727442642940,-174.792925,0.00020821,2]
[339301058,1727442642949,-488.32211835,0.00020934,2]
[339301060,1727442642958,-500.0,0.00021,30]
[339301062,1727442642968,-500.0,0.00021,30]
[339301064,1727442642978,-500.0,0.00021,30]
[339301066,1727442642987,-500.0,0.00021,30]
[339301068,1727442642997,-500.0,0.00021,30]
[339301070,1727442643006,-500.0,0.00021,30]
[339301072,1727442643015,-500.0,0.00021,30]
[339301074,1727442643024,-500.0,0.00021,30]
[339301076,1727442643034,-500.0,0.00021,30]
[339301078,1727442643044,-500.0,0.00021,30]
[339301080,1727442643054,-500.0,0.00021,30]
[339301082,1727442643063,-500.0,0.00021,30]
[339301084,1727442643072,-500.0,0.00021,30]
[339301086,1727442643081,-500.0,0.00021,30]
[339301089,1727442643093,-500.0,0.00021,30]
[339301092,1727442643102,-500.0,0.00021,30]
[339301094,1727442643113,-500.0,0.00021,30]
[339301096,1727442643123,-500.0,0.00021,30]
[339301098,1727442643134,-500.0,0.00021,30]
[339301101,1727442643144,-500.0,0.00021,30]
[339301103,1727442643154,-500.0,0.00021,30]
[339301105,1727442643165,-800.0,0.00021,30]
[339301107,1727442643175,-500.0,0.00021,30]
[339301109,1727442643186,-500.0,0.00021,30]
[339301111,1727442643197,-500.0,0.00021,30]
[339301113,1727442643206,-500.0,0.00021,30]
[339301115,1727442643215,-500.0,0.00021,30]
[339301117,1727442643225,-500.0,0.00021,30]
[339301119,1727442643234,-500.0,0.00021,30]
[339301121,1727442643243,-3000.0,0.00021,2]
[339301124,1727442643252,-150.0,0.00021,2]
[339301126,1727442643261,-495.0,0.00021,2]
[339301129,1727442643271,-500.0,0.00021,30]
[339301131,1727442643281,-500.0,0.00021,30]
[339301134,1727442643295,-500.0,0.00021,30]
[339301136,1727442643313,-276.8824371,0.00021,30]
[339301137,1727442643323,-500.0,0.00021,30]
[339301140,1727442643333,-500.0,0.00021,30]
[339301142,1727442643344,-500.0,0.00021,30]
[339301144,1727442643353,-500.0,0.00021,30]
[339301146,1727442643362,-499.3,0.00021,30]
[339301148,1727442643371,-500.0,0.00021,30]
[339301150,1727442643380,-504.39221637,0.00021,30]
[339301152,1727442643389,-500.0,0.00021,30]
[339301154,1727442643399,-559.82866608,0.00021,30]
[339301156,1727442643409,-500.0,0.00021,30]
[339301158,1727442643418,-500.0,0.00021,30]
[339301160,1727442643429,-500.0,0.00021,30]
[339301162,1727442643438,-500.0,0.00021,30]
[339301164,1727442643448,-500.0,0.00021,30]
[339301166,1727442643458,-500.0,0.00021,30]
[339301168,1727442643470,-500.0,0.00021,30]
[339301170,1727442643480,-500.0,0.00021,30]
[339301172,1727442643490,-500.0,0.00021,30]
[339301174,1727442643500,-939.9144285,0.00021,30]
[339301176,1727442643511,-500.0,0.00021,30]
[339301178,1727442643521,-500.0,0.00021,30]
[339301180,1727442643530,-500.0,0.00021,30]
[339301182,1727442643540,-500.0,0.00021,30]
[339301184,1727442643550,-500.0,0.00021,30]
[339301186,1727442643560,-500.0,0.00021,30]
[339301188,1727442643570,-154.74467129,0.00021,30]
[339301191,1727442643580,-500.0,0.00021,30]
[339301193,1727442643593,-546.55036028,0.00021,30]
[339301195,1727442643602,-500.0,0.00021,30]
[339301197,1727442643611,-500.0,0.00021,30]
[339301199,1727442643622,-500.0,0.00021,30]
[339301201,1727442643631,-500.0,0.00021,30]
[339301203,1727442643641,-504.42998189,0.00021,30]
[339301205,1727442643650,-500.0,0.00021,30]
[339301207,1727442643660,-500.0,0.00021,30]
[339301209,1727442643669,-161.86014978,0.00021,30]
[339301211,1727442643679,-500.0,0.00021,30]
[339301213,1727442643688,-500.0,0.00021,30]
[339301215,1727442643698,-500.0,0.00021,30]
[339301217,1727442643708,-500.0,0.00021,30]
[339301219,1727442643717,-500.0,0.00021,30]
[339301221,1727442643728,-500.0,0.00021,30]
[339301223,1727442643738,-499.3,0.00021,30]
[339301225,1727442643748,-154.74467129,0.00021,30]
[339301227,1727442643758,-3000.0,0.0002101,2]
[339301229,1727442643768,-3000.0,0.0002102,2]
[339301231,1727442643778,-150.0,0.00021027,2]
[339301233,1727442643788,-495.0,0.00021027,2]
[339301235,1727442643798,-3000.0,0.0002103,2]
[339301237,1727442643807,-3000.0,0.0002104,2]
[339301239,1727442643817,-151.0,0.0002105,2]
[339301241,1727442643827,-268.090704,0.0002105,2]
[339301243,1727442643837,-268.090704,0.0002105,2]
[339301245,1727442643847,-200.069123,0.0002105,2]
[339301247,1727442643857,-200.069123,0.0002105,2]
[339301249,1727442643867,-151.0,0.0002105,2]
[339301251,1727442643877,-3000.0,0.0002105,2]
[339301253,1727442643887,-150.0,0.00021055,2]
[339301255,1727442643897,-495.0,0.00021055,2]
[339301257,1727442643907,-3000.0,0.0002106,2]
[339301259,1727442643916,-3000.0,0.0002107,2]
[339301261,1727442643926,-500.0,0.00021073,2]
[339301263,1727442643936,-500.0,0.00021073,2]
[339301265,1727442643945,-500.0,0.00021073,2]
[339301267,1727442643955,-507.23894517,0.00021073,2]
[339301269,1727442643964,-500.0,0.00021073,2]
[339301271,1727442643974,-3000.0,0.0002108,2]
[339301273,1727442643984,-495.0,0.00021082,2]
[339301275,1727442643993,-3000.0,0.0002109,2]
[339301277,1727442644003,-591.76,0.00021095,2]
[339301279,1727442644012,-939.76,0.00021095,2]
[339301281,1727442644022,-764.03,0.00021095,2]
[339301283,1727442644031,-942.5,0.00021095,2]
[339301285,1727442644041,-500.0,0.00021095,2]
[339301287,1727442644050,-500.0,0.00021095,2]
[339301289,1727442644060,-500.0,0.00021095,2]
[339301291,1727442644069,-886.6,0.00021095,2]
[339301293,1727442644079,-500.0,0.00021095,2]
[339301296,1727442644089,-1211.69,0.00021095,2]
[339301298,1727442644099,-1624.79,0.00021095,2]
[339301299,1727442644108,-200.0,0.00021095,2]
[339301301,1727442644117,-500.0,0.00021095,2]
[339301304,1727442644127,-1101.06,0.00021095,2]
[339301305,1727442644136,-500.0,0.00021095,2]
[339301308,1727442644146,-500.0,0.00021095,2]
[339301310,1727442644156,-957.37,0.00021095,2]
[339301312,1727442644165,-13150.91,0.00021095,2]
[339301313,1727442644174,-2463.96,0.00021095,2]
[339301315,1727442644184,-500.0,0.00021095,2]
[339301317,1727442644193,-1534.8,0.00021095,2]
[339301319,1727442644203,-407.18,0.000211,2]
[339301321,1727442644212,-3000.0,0.000211,2]
[339301323,1727442644221,-6491.31779664,0.00021109,2]
[339301325,1727442644231,-495.0,0.0002111,2]
[339301327,1727442644240,-3000.0,0.0002111,2]
[339301329,1727442644249,-3000.0,0.0002112,2]
[339301331,1727442644259,-3000.0,0.0002113,2]
[339301333,1727442644268,-495.0,0.00021137,2]
[339301335,1727442644278,-3000.0,0.0002114,2]
[339301337,1727442644288,-3000.0,0.0002115,2]
[339301339,1727442644301,-160.0,0.00021154,2]
[339301342,1727442644311,-247398.91625455,0.00021155,2]
[339301344,1727442644321,-41138.29500102,0.00021155,2]
[339301345,1727442644330,-183.376218,0.00021155,2]
[339301347,1727442644341,-183.376218,0.00021155,2]
[339301349,1727442644350,-151.0,0.00021155,2]
[339301351,1727442644359,-367.781189,0.00021155,2]
[339301353,1727442644368,-367.781189,0.00021155,2]
[339301355,1727442644377,-520.384179,0.00021155,2]
[339301357,1727442644387,-520.384179,0.00021155,2]
[339301359,1727442644396,-151.0,0.00021155,2]
[339301361,1727442644406,-282.399868,0.00021155,2]
[339301363,1727442644415,-282.399868,0.00021155,2]
[339301365,1727442644425,-151.0,0.00021155,2]
[339301367,1727442644434,-265.923719,0.00021155,2]
[339301369,1727442644443,-151.0,0.00021155,2]
[339301371,1727442644453,-265.923719,0.00021155,2]
[339301373,1727442644462,-151.0,0.00021155,2]
[339301375,1727442644472,-151.0,0.00021155,2]
[339301377,1727442644481,-151.0,0.00021155,2]
[339301379,1727442644490,-384.809038,0.00021155,2]
[339301381,1727442644500,-226.332135,0.00021155,2]
[339301383,1727442644509,-384.809038,0.00021155,2]
[339301385,1727442644518,-226.332135,0.00021155,2]
[339301387,1727442644527,-151.0,0.00021155,2]
[339301389,1727442644537,-151.0,0.00021155,2]
[339301391,1727442644546,-151.0,0.00021155,2]
[339301393,1727442644556,-151.0,0.00021155,2]
[339301395,1727442644567,-151.0,0.00021155,2]
[339301397,1727442644576,-151.0,0.00021155,2]
[339301399,1727442644585,-389.380719,0.00021155,2]
[339301401,1727442644594,-250.967248,0.00021155,2]
[339301403,1727442644604,-151.0,0.00021155,2]
[339301405,1727442644613,-389.380719,0.00021155,2]
[339301407,1727442644622,-250.967248,0.00021155,2]
[339301409,1727442644631,-151.0,0.00021155,2]
[339301411,1727442644641,-299.79874,0.00021155,2]
[339301413,1727442644650,-299.79874,0.00021155,2]
[339301415,1727442644660,-295.737665,0.00021155,2]
[339301417,1727442644669,-295.737665,0.00021155,2]
[339301419,1727442644679,-151.0,0.00021155,2]
[339301421,1727442644688,-819.716364,0.00021155,2]
[339301423,1727442644697,-819.716364,0.00021155,2]
[339301425,1727442644707,-151.0,0.00021155,2]
[339301427,1727442644716,-1091.980695,0.00021155,2]
[339301429,1727442644726,-1091.980695,0.00021155,2]
[339301431,1727442644735,-236.497999,0.00021155,2]
[339301433,1727442644745,-236.497999,0.00021155,2]
[339301435,1727442644754,-151.0,0.00021155,2]
[339301437,1727442644765,-409.399505,0.00021155,2]
[339301439,1727442644774,-409.399505,0.00021155,2]
[339301441,1727442644784,-151.0,0.00021155,2]
[339301443,1727442644794,-151.0,0.00021155,2]
[339301445,1727442644803,-151.0,0.00021155,2]
[339301447,1727442644813,-151.0,0.00021155,2]
[339301449,1727442644822,-796.427013,0.00021155,2]
[339301451,1727442644831,-796.427013,0.00021155,2]
[339301453,1727442644841,-151.0,0.00021155,2]
[339301455,1727442644850,-424.014165,0.00021155,2]
[339301457,1727442644859,-151.0,0.00021155,2]
[339301459,1727442644869,-338.144571,0.00021155,2]
[339301461,1727442644878,-424.014165,0.00021155,2]
[339301463,1727442644888,-338.144571,0.00021155,2]
[339301465,1727442644898,-174.792925,0.00021155,2]
[339301467,1727442644907,-3000.0,0.0002116,2]
[339301469,1727442644917,-500.0,0.00021164,2]
[339301471,1727442644926,-495.0,0.00021164,2]
[339301473,1727442644936,-3000.0,0.0002117,2]
[339301475,1727442644947,-180.743,0.00021178,2]
[339301477,1727442644957,-3000.0,0.0002118,2]
[339301479,1727442644966,-3000.0,0.0002119,2]
[339301481,1727442644975,-495.0,0.00021192,2]
[339301483,1727442644985,-3000.0,0.000212,2]
[339301485,1727442644994,-3000.0,0.0002121,2]
[339301487,1727442645004,-495.0,0.00021219,2]
[339301489,1727442645014,-3000.0,0.0002122,2]
[339301491,1727442645023,-3000.0,0.0002123,2]
[339301493,1727442645032,-3000.0,0.0002124,2]
[339301495,1727442645041,-495.0,0.00021247,2]
[339301497,1727442645051,-3000.0,0.0002125,2]
[339301499,1727442645060,-3000.0,0.0002126,2]